Cogmind - Beta 12 @@@ ROGUE MODE // 2023.05.02 @ 06:49:55 Player: Ms Vella Result: Destroyed by G-47 Trooper with Particle Gun Performance ------------- Evolutions (2) 1000 Regions Visited (3) 600 Robots Destroyed (90) 450 Value Destroyed (2645) 2645 Prototype IDs (2) 40 Alien Tech Used (0) 0 Bonus (50) 50 TOTAL SCORE: 4785 Bonus ------- High Alert Combat Kills 50 Cogmind --------- Core Integrity 0/550 Matter 227/300 Energy 20/100 System Corruption 0% Temperature Cool (9) Movement Core (700) Ox13 Location -8/Materials Parts ------- > --- POWER (1) -------- (None) > --- PROPULSION (3) --- (None) > --- UTILITY (5) ------ High-capacity Storage Unit Tractor Beam > --- WEAPON (2) ------- (None) > --- INVENTORY (20) --- Large Storage Unit High-capacity Matter Pod (200) Improved Terrain Scanner Improved Terrain Scanner Improved Terrain Scan Processor Improved Terrain Scan Processor Improved Targeting Computer Hacking Suite System Shield System Shield System Shield Peak State ------------ > --- POWER ------------ Nuclear Core > --- PROPULSION ------- Advanced Treads Advanced Treads Advanced Treads > --- UTILITY ---------- High-capacity Storage Unit Improved Targeting Computer Light Armor Plating Hardened Medium Armor Plating Hardened Medium Armor Plating > --- WEAPON ----------- Heavy Assault Rifle Flak Cannon > --- INVENTORY -------- Large Storage Unit High-capacity Matter Pod Improved Terrain Scanner Improved Terrain Scanner Improved Terrain Scan Processor Improved Terrain Scan Processor Improved Targeting Computer Propulsion Shielding Hacking Suite System Shield System Shield System Shield Heavy EM Pulse Gun Heavy Assault Rifle Flak Cannon Flak Cannon Mini Grenade Launcher [Rating: 31] Favorites ----------- Power Improved Ion Engine Engine Improved Ion Engine Power Core Light Nuclear Core Propulsion Advanced Treads Treads Advanced Treads Leg Carbon-fiber Leg Utility High-capacity Storage Unit Device Improved Heat Sink Storage High-capacity Storage Unit Processor Improved Targeting Computer Hackware Hacking Suite Protection Medium Armor Plating Weapon Heavy Assault Rifle Energy Gun Particle Gun Energy Cannon Advanced Beam Cannon Ballistic Gun Heavy Assault Rifle Ballistic Cannon Flak Cannon Launcher Grenade Launcher Build | -11 -10 -9 -8 ------- Run | Jun Mat Mat Mat Slots Evolved 4 | . . 2 2 Power . | . . . . Propulsion 1 | . . 1 . Utility 3 | . . 1 2 Weapon . | . . . . Parts Attached 97 | 2 10 66 19 Power 10 | . 2 6 2 Engine 7 | . 1 6 . Core 3 | . 1 . 2 Reactor . | . . . . Propulsion 15 | 2 1 9 3 Treads 14 | 2 1 9 2 Leg 1 | . . . 1 Wheel . | . . . . Hover . | . . . . Flight . | . . . . Utility 23 | . 3 12 8 Device 3 | . . 2 1 Storage 2 | . 1 1 . Processor 1 | . . 1 . Hackware 1 | . . . 1 Protection 16 | . 2 8 6 Artifact . | . . . . Weapon 49 | . 4 39 6 Energy Gun 23 | . 4 18 1 Energy Cannon 10 | . . 10 . Ballistic Gun 11 | . . 9 2 Ballistic Cannon 3 | . . 1 2 Launcher 2 | . . 1 1 Special Weapon . | . . . . Impact Weapon . | . . . . Slashing Weapon . | . . . . Piercing Weapon . | . . . . Special Melee Weapon . | . . . . Unidentified Prototypes 2 | . . 2 . Corrupted Parts 1 | . 1 . . System Corruption 1 | . 1 . . Parts Lost 32 | . 4 6 22 Power 5 | . 2 1 2 Propulsion 6 | . . 1 5 Utility 13 | . 2 3 8 Weapon 8 | . . 1 7 Highest Loss Streak 11 | . 2 2 11 To Critical Strikes . | . . . . Average Slot Usage (%) 97 | . 97 99 84 Engine 8 | . 3 10 2 Core 3 | . 10 . 4 Treads 30 | . 28 32 19 Device 4 | . . 6 4 Storage 11 | . 14 11 9 Processor 2 | . . 2 4 Protection 12 | . 11 12 17 Energy Gun 9 | . 25 3 . Energy Cannon 4 | . . 6 . Ballistic Gun 6 | . 1 9 3 Ballistic Cannon 2 | . . 1 12 Naked Turns . | . . . . Heaviest Build 77 | 11 38 62 77 Greatest Support 66 | 40 40 66 66 Greatest Overweight (x) 13 | . . 1 13 Average Overweight (x) . | . . . 1 Largest Inventory Capacity 20 | 8 15 20 20 Average Capacity 17 | 8 13 18 20 Most Carried 20 | 5 14 20 20 Average Carried 15 | 4 11 17 16 Final Capacity 20 | 8 15 20 20 Final Carried 20 | 4 13 20 11 Class Distribution -------------------- 71% | Mutant 28% | Scavenger-Mutant Dominant Class ---------------- Mutant | -10/Materials Mutant | -9/Materials Scavenger-Mutant | -8/Materials Resources | -11 -10 -9 -8 ----------- Run | Jun Mat Mat Mat Matter Collected 2154 | 200 135 1228 591 Remotely 328 | . . . 328 Salvage Created 2864 | . 739 1694 431 Parts 179 | . 54 108 17 Haulers Intercepted 2 | . 1 1 . Recyclers Shooed 5 | . . 4 1 Parts Field Recycled . | . . . . Retrieved Matter . | . . . . Parts Self-Destructed . | . . . . Prevented . | . . . . Kills | -11 -10 -9 -8 ------- Run | Jun Mat Mat Mat Combat Hostiles Destroyed 68 | . 16 39 13 Guns 35 | . 13 19 3 Cannons 26 | . . 16 10 AOE 6 | . 3 3 . Classes Destroyed 13 | . 6 4 3 Worker 2 | . . 2 . Builder 4 | . 3 1 . Hauler 2 | . 1 1 . Recycler 2 | . . 1 1 Operator 9 | . 4 5 . Watcher 3 | . 1 2 . Swarmer 12 | . 3 9 . Grunt 39 | . 13 20 6 Brawler 1 | . . 1 . Sentry 11 | . . 9 2 Specialist 2 | . . . 2 Hunter 1 | . . . 1 Heavy 2 | . . . 2 Best Kill Streak 10 | . 10 6 5 Combat Bots Only 6 | . 6 6 5 Max Kills in Single Turn 3 | . 3 2 1 Gunslinging 1 | . 1 . . Exploded 2 | . 2 2 . Melee . | . . . . Uniques/NPCs Destroyed . | . . . . Combat | -11 -10 -9 -8 -------- Run | Jun Mat Mat Mat Damage Taken 5578 | . 807 1889 2882 Core 842 | . 81 198 563 Absorbed by Shields . | . . . . Redirected to Shielding 53 | . . . 53 Regen/Repaired (Parts) 437 | . . 437 . Core Remaining (%) 72 | 100 67 50 . Volleys Fired 220 | . 41 118 61 Largest 2 | . 2 2 2 Hottest 118 | . 110 118 88 Shots Fired 404 | . 72 230 102 Gun 286 | . 72 176 38 Cannon 113 | . . 52 61 Launcher 5 | . . 2 3 Special . | . . . . Kinetic 198 | . 17 91 90 Thermal 127 | . 16 111 . Explosive 5 | . . 2 3 Electromagnetic 74 | . 39 26 9 Robot Hit Streak 25 | . 9 15 25 Robot Miss Streak 9 | . 4 3 9 Penetration Max . | . . . . Secondary Targets 4 | . 2 1 1 Max Gunslinging Chain 1 | . 1 1 1 Shots Hit Robots 280 | . 52 146 82 Core Hits 181 | . 45 71 65 Critical Kills . | . . . . Critical Parts Destroyed 1 | . . 1 . Critical Strikes 6 | . 1 5 . Burn 5 | . 1 4 . Destroy 1 | . . 1 . Melee Attacks . | . . . . Impact . | . . . . Slashing . | . . . . Piercing . | . . . . Sneak Attacks . | . . . . Combat Hostiles . | . . . . Follow-up Attacks . | . . . . Damage Inflicted 5402 | . 1050 2731 1621 Guns 2736 | . 754 1602 380 Cannons 1977 | . . 823 1154 Explosions 486 | . 259 140 87 Melee . | . . . . Ramming 203 | . 37 166 . Kinetic 2368 | . 86 828 1454 Thermal 1754 | . 414 1340 . Explosive 227 | . . 140 87 Electromagnetic 850 | . 513 257 80 Impact . | . . . . Slashing . | . . . . Piercing . | . . . . Highest Corruption 2 | . 2 2 . Average Corruption 1 | . 1 2 . Corruption Purged . | . . . . Corruption Blocked . | . . . . Effects 41 | . 11 30 . Message Errors 8 | . 2 6 . Matter Fused 10 | . 1 9 . Heat Flow Errors 5 | . 2 3 . Energy Discharges 8 | . 3 5 . Data Loss (minor) 5 | . 2 3 . Data Loss (major) 2 | . . 2 . Misfires 1 | . . 1 . Alerts 1 | . 1 . . Weapon Failures 1 | . . 1 . Overload Shots . | . . . . Overflow Damage 15 | . . 15 . Projectiles 10 | . . 10 . Explosions . | . . . . Melee 5 | . . 5 . Knockbacks 22 | . . 2 20 Impact 2 | . . 2 . Kinetic 20 | . . . 20 Secondary . | . . . . Self-Inflicted Damage 15 | . . 15 . Shots 1 | . . 1 . Rammed 20 | . 3 17 . Targets Rammed 25 | . 5 20 . Kicked . | . . . . Crushed 5 | . 2 3 . Highest Temperature 601 | . 375 459 601 Average Temperature 124 | . 118 103 184 Received Heat Transfer 1806 | . 339 756 711 Effects 27 | . 1 5 21 Shutdowns 3 | . 1 1 1 Energy Bleed 2 | . . 1 1 Interference 6 | . . 2 4 Matter Decay 6 | . . 1 5 Short Circuit 3 | . . . 3 Damage (minor) 1 | . . . 1 Damage (major) 5 | . . . 5 Damage (core) 1 | . . . 1 Siege Activations . | . . . . Robots Corrupted . | . . . . Combat Hostiles . | . . . . Parts Fried 3 | . 2 1 . Impact Corruptions 1 | . . 1 . Robots Melted 1 | . . 1 . Combat Hostiles 1 | . . 1 . Parts Melted 6 | . 2 4 . Heat Transferred 3979 | . 881 3098 . Parts Sabotaged . | . . . . Parts Stolen . | . . . . Parts Stripped . | . . . . Power Chain Reactions 3 | . 3 . . Missiles Intercepted . | . . . . Alert | -11 -10 -9 -8 ------- Run | Jun Mat Mat Mat Peak Influence 543 | . 225 543 426 Initial 161 | . . 42 161 Average 173 | . 72 199 277 Maximum Alert Level 2 | . 1 2 2 Low Security (%) 58 | 100 88 52 19 Level 1 35 | . 11 41 56 Level 2 5 | . . 5 23 Level 3 . | . . . . Level 4 . | . . . . Level 5 . | . . . . High Security . | . . . . Max Security . | . . . . Squads Dispatched 18 | . 5 8 5 Investigation 5 | . 2 2 1 Extermination . | . . . . Reinforcement 13 | . 3 6 4 Assault . | . . . . Garrison . | . . . . Intercept . | . . . . Searches Triggered . | . . . . Construction Impeded 2 | . . 1 1 Haulers Reinforced . | . . . . Active Scanning Responses . | . . . . Cargo Convoy Interrupts . | . . . . Stealth | -11 -10 -9 -8 --------- Run | Jun Mat Mat Mat Distress Signals 11 | . 2 9 . Communications Jammed . | . . . . Distress Signals . | . . . . Times Spotted 120 | . 25 76 19 Peak Tracking Total 7 | . 6 7 5 Tactical Retreats 5 | . 1 2 2 Traps | -11 -10 -9 -8 ------- Run | Jun Mat Mat Mat Traps Triggered 11 | . 6 4 1 Indirectly . | . . . . Trap Hack Attempts . | . . . . Triggered . | . . . . Disarmed . | . . . . Reprogrammed . | . . . . Reused . | . . . . Traps Extracted . | . . . . Installed . | . . . . Triggered . | . . . . Machines | -11 -10 -9 -8 ---------- Run | Jun Mat Mat Mat Machines Disabled 3 | . 1 2 . Max in Single Turn 1 | . 1 1 . Machines Repaired . | . . . . Machines Sabotaged . | . . . . Overloaded Fab Kills . | . . . . Hacking | -11 -10 -9 -8 --------- Run | Jun Mat Mat Mat Machines Accessed 14 | . 3 10 1 Terminals 9 | . 3 6 . Fabricators . | . . . . Repair Stations 2 | . . 2 . Recycling Units . | . . . . Scanalyzers 3 | . . 2 1 Garrison Access . | . . . . Total Hacks 70 | . 8 55 7 Successful 55 | . 4 44 7 Failed 15 | . 4 11 . Catastrophic 2 | . 1 1 . Database Lockouts . | . . . . Manual 16 | . 5 11 . Terminals 26 | . 8 18 . Fabricators . | . . . . Repair Stations 13 | . . 13 . Recycling Units . | . . . . Scanalyzers 31 | . . 24 7 Garrison Access . | . . . . Terminal Hacks 6 | . 1 5 . Robot Analysis 2 | . 1 1 . Alert Level 1 | . . 1 . Unreport Threat 3 | . . 3 . Fabricator Hacks . | . . . . Repair Station Hacks 9 | . . 9 . Scan Component 5 | . . 5 . Repair 4 | . . 4 . Recycling Unit Hacks . | . . . . Scanalyzer 30 | . . 23 7 Insert Component 15 | . . 11 4 Analyze 15 | . . 12 3 Garrison Access Hacks . | . . . . Unauthorized Hacks 10 | . 3 7 . Terminals 10 | . 3 7 . Track 1 | . . 1 . Botnet 6 | . 2 4 . Operators 3 | . 1 2 . Fabricators . | . . . . Repair Stations . | . . . . Recycling Units . | . . . . Scanalyzers . | . . . . Garrison Access . | . . . . Data Cores Recovered 1 | . 1 . . Used . | . . . . Hacking Detections 14 | . 3 10 1 Full Trace Events 4 | . 1 3 . Feedback Events . | . . . . Feedback Blocked . | . . . . Robot Schematics Acquired . | . . . . Robots Built . | . . . . Authchips . | . . . . Time . | . . . . Total Robot Build Rating . | . . . . Part Schematics Acquired 14 | . . 11 3 Parts Built . | . . . . Authchips . | . . . . Time . | . . . . Total Part Build Rating . | . . . . Parts Repaired 4 | . . 4 . Time 122 | . . 122 . Parts Recycled . | . . . . Recycled Matter . | . . . . Retrieved Matter . | . . . . Retrieved Components . | . . . . Parts Scanalyzed 14 | . . 11 3 Part Schematics Acquired 14 | . . 11 3 Parts Damaged . | . . . . Bothacking | -11 -10 -9 -8 ------------ Run | Jun Mat Mat Mat Used RIF Installer . | . . . . Robots Hacked . | . . . . Non-combat . | . . . . Combat . | . . . . Robot Hacks Applied . | . . . . Relay Couplers Released . | . . . . Fabnet Peak Effective % . | . . . . Robots Rewired . | . . . . Allies Hacked . | . . . . Hacks Repelled . | . . . . Allies | -11 -10 -9 -8 -------- Run | Jun Mat Mat Mat Total Allies . | . . . . Largest Group . | . . . . Highest-Rated Group . | . . . . Highest-Rated Ally . | . . . . Total Orders . | . . . . Ally Attacks . | . . . . Total Damage . | . . . . Kills . | . . . . Allies Corrupted . | . . . . Allies Melted . | . . . . Intel | -11 -10 -9 -8 ------- Run | Jun Mat Mat Mat Robot Analysis Total 2 | . 1 1 . Derelict Logs Recovered . | . . . . Drone Launches . | . . . . Drone Recoveries . | . . . . Exploration | -11 -10 -9 -8 ------------- Run | Jun Mat Mat Mat Turns Passed 6015 | 4 1555 3871 585 Spaces Moved 2721 | 1 816 1758 146 Core 5 | . . . 5 Treads 2701 | 1 816 1758 126 Legs 15 | . . . 15 Wheels . | . . . . Hover . | . . . . Flight . | . . . . Fastest Speed 145 | 160 160 145 145 Average Speed 161 | 160 160 154 246 Slowest Speed 700 | 160 160 240 700 Overloaded Moves . | . . . . Propulsion Burnouts . | . . . . Robots Hopped . | . . . . Cave-ins Triggered . | . . . . Exploration Rate (%) 49 | 2 89 98 9 Regions Visited 3 Branch Regions . Pre-discovered Areas . | . . . . Known Exits Taken . | . . . . Unknown Exits Taken 3 | 1 1 1 . Scrap Searched . | . . . . Spaces Dug . | . . . . Terrain Destroyed 45 | . 11 5 29 Melee . | . . . . Projectile . | . . . . AOE 45 | . 11 5 29 Terrain Rammed . | . . . . Walls Destroyed . | . . . . Machines Disabled . | . . . . Actions | -11 -10 -9 -8 --------- Run | Jun Mat Mat Mat Total 3931 | 6 993 2660 272 Wait 776 | . 105 632 39 Move 2718 | . 815 1757 146 Hop . | . . . . Pick Up 45 | . 11 30 4 Fast Attach 27 | . 6 15 6 Attach 26 | 2 2 10 12 Detach 5 | 2 1 2 . Swap 44 | . 2 41 1 Drop 45 | 2 5 35 3 Fire 220 | . 41 118 61 Melee . | . . . . Ram . | . . . . Kick . | . . . . Crush 25 | . 5 20 . Escape Stasis . | . . . . Rewire . | . . . . Trap . | . . . . Miscellaneous . | . . . . Route ------- -11/Junkyard -10/Materials (discovered 4 exits: *Mat x3 / [*Min]) -9/Materials (discovered 5 exits: *Mat x3 / [*Min x2]) -8/Materials History --------- Turn | Location | Event 5 | -11/Junkyard | Discovered new exit (range 0) 5 | -11/Junkyard | Entered Materials 300 | -10/Materials | Build established: Mutant 670 | -10/Materials | Discovered new exit (range 5) 885 | -10/Materials | Discovered new exit (range 5) 1272 | -10/Materials | Discovered new exit (range 15) 1521 | -10/Materials | Discovered new exit (range 16) 1560 | -10/Materials | Entered another Materials area 1560 | -9/Materials | Evolved 2 slots: Propulsion x1, Utility x1 1722 | -9/Materials | Repaired Lgt. Treads 1772 | -9/Materials | Repaired Med. Armor Plating 1802 | -9/Materials | Discovered new exit (range 6) 2082 | -9/Materials | Discovered new exit (range 10) 2498 | -9/Materials | Build established: Scavenger-Mutant 2854 | -9/Materials | Discovered new exit (range 14) 3059 | -9/Materials | Build established: Mutant 3511 | -9/Materials | Discovered new exit (range 16) 3646 | -9/Materials | Build established: Scavenger-Mutant 4017 | -9/Materials | Discovered new exit (range 9) 4198 | -9/Materials | Repaired Adv. Treads 4226 | -9/Materials | Repaired Lgt. Armor Plating 4780 | -9/Materials | Build established: Mutant 5431 | -9/Materials | Entered another Materials area 5431 | -8/Materials | Evolved 2 slots: Utility x2 5622 | -8/Materials | Lost 5 parts (1p4u) 5945 | -8/Materials | Core integrity fell below 50% 5961 | -8/Materials | Core integrity fell below 20% 6016 | -8/Materials | Destroyed by G-47 Trooper with Particle Gun Last Messages --------------- 05961_ Acquired 6 matter. 05962_ K-01 Serf collects debris. 05975_ Carbon-fiber Leg destroyed. 05975_ Knocked back. 05976_ Acquired 4 matter. 05976_ R-06 Scavenger collects Shotgun. 05980_ R-06 Scavenger destroyed. 05980_ Mni. Grenade Launcher destroyed. 05980_ Knocked back. 05981_ Acquired 6 matter. 05986_ Penetrated by Slug. 05987_ Acquired 3 matter. 05992_ Acquired 5 matter. 05999_ U-05 Engineer lays Concrete. 06000_ U-05 Engineer builds a Wall. 06001_ H-61 Shepherd destroyed. 06001_ Switching to secondary target: G-47 Trooper. 06003_ Hvy. Assault Rifle destroyed. 06005_ The unstable cave ceiling collapses. 06013_ Hvy. EM Pulse Gun destroyed. Map ----- +----------------------------------------------------+ | ?????""?#?????? #??????????????????????? | | ?????"" # ????? % #??????????????????????? | | ??????" # ????#%* #??????????????????????? | | ??????? / ???# % #??????????????????????? | | ????????# ?## ##?????????????????????? | | ????????# ## #?????????????????????? | | ?????????? % #?????????????????????? | | ??????????? #?????????????????????? | | ???????????? #?????????????????????? | | ?????????????# #?????????????????????? | | ????????????### ###????????????????????? | | ????????????# # #????????????????????? | | ????????????# * #????????????????????? | | ???????????## [%= #????????????????????? | | ?????####### gg ????????????????????? | | ?????# #g ?????????????????????? | | ?????# """ ########?????????????? | | ?????# """ ?????????????? | | ?????# """ """ T #????????????? | | ?????# """ #????????????? | | ?????# """ # # """ #????????????? | | ?????# """ #== ; """ #????????????? | | ?????# | """*;[[]# #????????????? | | ?????# ; # = #????????????? | | ?????########## # #????????????? | | ???????# # !@###########????????????? | | ???????#""" # ! # ##????????????? | | ???????#""" [ + # "" #????????????? | | ???????#""" # # ""S #?????????????? | | ???????# ; [ # "" #?????????????? | | ???????# # # #?????????????? | | ???????######## + """" #?????????????? | | ??????????????# # """" #?????????????? | | ??????????????# #! """" #?????????????? | | ??????????????# # #?????????????? | | ??????????????# ##########?????????????? | | ??????????????# #??????????????????????? | | ??????????????# #??????????????????????? | | ??????????????# #??????????????????????? | | ??????????????# #??????????????????????? | | ??????????????# #??????????????????????? | | ??????????????# #??????????????????????? | | ??????????????# #??????????????????????? | | ??????????????# #??????????????????????? | | ??????????????# #??????????????????????? | | ??????????????# #??????????????????????? | | ??????????????# #??????????????????????? | | ??????????????# #??????????????????????? | | ??????????????# #??????????????????????? | | ??????????????# #??????????????????????? | +----------------------------------------------------+ Best States ------------- Heat Dissipation 42 Energy Generation 14 Energy Capacity 265 Matter Stores 300 Matter Capacity 300 Sight Range 16 Terrain Scan Density 10 Armor Coverage 600 Propulsion Shielding 33 Evasion (%) 40 Targeting Accuracy 6 Recoil Reduction 3 Offensive Hacking 10 Item Schematics ----------------- Lgt. Armor Plating | -9/Materials | Scanalyzed Med. Armor Plating | -9/Materials | Scanalyzed Lgt. Treads | -9/Materials | Scanalyzed Adv. Treads | -9/Materials | Scanalyzed Hacking Suite | -9/Materials | Scanalyzed Lrg. Storage Unit | -9/Materials | Scanalyzed EM Pulse Gun | -9/Materials | Scanalyzed Hvy. Assault Rifle | -9/Materials | Scanalyzed Imp. Targeting Computer | -9/Materials | Scanalyzed Imp. Terrain Scanner | -9/Materials | Scanalyzed Imp. Terrain Scan Processor | -9/Materials | Scanalyzed Flak Cannon | -8/Materials | Scanalyzed System Shield | -8/Materials | Scanalyzed Hvy. EM Pulse Gun | -8/Materials | Scanalyzed Robot Schematics ------------------ None Fabricated ------------ Nothing Alien Tech Used ----------------- None Achievements -------------- None Challenges ------------ None Game ------ Seed ArchitectFlightShearcannon Manual? 0 Play Time 00:53:24 Cumulative 72.3 hours Start 2023.05.02 @ 05:26:54 End 2023.05.02 @ 06:49:55 Sessions 1 Manual Loads 0 Difficulty Rogue Special Mode None Game No. 66 Rogue 21 Adventurer 19 Explorer 26 Win Type - Total 0 Types 0/0/0/0/0/0/0/0/0 Lore% 21 Gallery% 44 Achievement% 66 Wizard Run 0 Options --------- ASCII 0 Keyboard 0 Movement Mouse Keybinds 0 Fullscreen 0 Font 16/Smallcaps Map View 76x50 Tactical HUD 1 Map Filters NONE Filters BRIGHTNESS(125)|SATURATION(75)|LOW_CONTRAST(13,24,33)|SHIFT_HUE(130) Steam 1 RUN: b90e1263-745a-416d-9f1d-0c1e7023261e